bitfinex-derivatives/quotes_ETHF0:USTF0_20240822
["timestamp","ask_amount","ask_price","bid_price","bid_amount"]
[1724336111469,9.20719,2614.3,2614.2,0.00865666]
[1724336111671,11.99103428,2614.3,2614.2,0.00865666]
[1724336111873,12.94702428,2614.3,2614.2,0.00865666]
[1724336112362,10.96748,2614.3,2614.2,0.00865666]
[1724336112967,14.39790036,2614.3,2614.2,0.00865666]
[1724336113173,0.38252,2613.5,2612.8,4.186]
[1724336113474,3.2078,2613.4,2613.3,0.38254]
[1724336113967,4.089,2613.7,2613.6,0.3825]
[1724336114272,0.00341618,2613.7,2613.6,0.38682217]
[1724336114467,0.00341618,2613.7,2613.6,4.21322217]
[1724336114666,0.00341618,2613.7,2613.6,0.38682217]
[1724336114970,0.00341618,2613.7,2613.6,0.00432217]
[1724336115168,0.00341618,2613.7,2613.6,0.38682217]
[1724336115368,0.00341618,2613.7,2613.6,4.21322217]
[1724336116071,0.00341618,2613.7,2613.6,3.83072217]
[1724336116372,0.00341618,2613.7,2613.6,0.00432217]
[1724336116373,4.21229618,2613.7,2613.6,0.00432217]
[1724336116666,5.31508035,2613.7,2613.6,0.00432217]
[1724336116871,3.82981618,2613.7,2613.6,0.00432217]
[1724336117489,0.00341618,2613.7,2613.6,0.00432217]
[1724336118788,4.21229618,2613.7,2613.6,0.00432217]
[1724336119788,5.69756035,2613.7,2613.6,0.00432217]
[1724336119994,6.12256035,2613.7,2613.6,0.00432217]
[1724336120189,4.63729618,2613.7,2613.6,0.00432217]
[1724336120386,6.12287317,2613.7,2613.6,0.00432217]
[1724336120791,0.00341618,2613.7,2613.6,0.00432217]
[1724336122491,3.82981618,2613.7,2613.6,0.00432217]
[1724336122684,4.21229618,2613.7,2613.6,0.00432217]
[1724336124090,5.69787317,2613.7,2613.6,0.00432217]
[1724336124485,5.31539317,2613.7,2613.6,0.00432217]
[1724336124780,0.00341618,2613.7,2613.6,0.00432217]
[1724336125192,0.38589618,2613.7,2613.6,0.00432217]
[1724336125393,0.00341618,2613.7,2613.6,0.00432217]
[1724336126591,0.00341618,2613.7,2613.6,0.38682217]
[1724336126791,0.00341618,2613.7,2613.6,0.00432217]
[1724336127091,0.00341618,2613.7,2613.6,0.38682217]
[1724336127481,0.00341618,2613.7,2613.6,4.61262217]
[1724336130393,0.38245,2614.0,2613.6,9.61261217]
[1724336130588,5.64941699,2614.2,2613.6,0.40372217]
[1724336130788,0.38246,2613.9,2613.6,0.40372217]
[1724336130988,5.64941699,2614.2,2613.6,0.78621217]
[1724336130989,0.38245,2614.0,2613.6,0.78621217]
[1724336131190,5.64941699,2614.2,2613.6,0.40372217]
[1724336131191,0.38246,2613.9,2613.6,0.40372217]
[1724336131390,0.38564508,2613.9,2613.6,0.40372217]
[1724336131590,0.00318508,2613.9,2613.6,0.00432217]
[1724336131787,0.38248,2613.7,2613.6,0.00432217]
[1724336131987,4.16713508,2613.9,2613.6,0.00432217]
[1724336132196,3.21098508,2613.9,2613.6,0.00432217]
[1724336133005,3.59344508,2613.9,2613.6,0.00432217]
[1724336133800,3.21098508,2613.9,2613.6,0.38681217]
[1724336134004,3.21098508,2613.9,2613.6,0.00432217]
[1724336134494,0.38248,2613.7,2613.6,0.00432217]
[1724336134898,5.16509,2613.7,2613.6,0.00432217]
[1724336135497,5.16509,2613.7,2613.6,0.00432217]
[1724336135698,8.10165223,2613.7,2613.6,0.00432217]
[1724336135901,1.33879,2613.5,2613.4,0.00574053]
[1724336136110,10.46287,2613.5,2613.4,0.00574053]
[1724336136397,0.38262,2612.8,2612.6,0.4138]
[1724336136700,0.38262,2612.8,2612.2,3.2078]
[1724336136701,3.2078,2612.9,2612.0,4.96]
[1724336136907,3.2078,2612.6,2612.2,0.4138]
[1724336137091,0.38266,2612.5,2612.2,0.4138]
[1724336137297,3.2078,2612.3,2612.0,0.41796837]
[1724336137791,0.00574053,2612.4,2612.1,0.38271]
[1724336137996,0.00574053,2612.4,2612.3,0.38269]
[1724336138400,0.00574053,2612.4,2612.3,4.21069]
[1724336138699,0.00574053,2612.4,2612.3,3.828]
[1724336138902,0.00574053,2612.4,2612.2,4.96]
[1724336139097,0.00574053,2612.4,2612.1,3.2078]
[1724336139301,0.00574053,2612.4,2612.2,0.3827]
[1724336139496,0.00574053,2612.4,2612.1,3.2078]
[1724336139694,0.00574053,2612.4,2612.3,0.38269]
[1724336140099,0.00574053,2612.4,2612.3,4.21069]
[1724336140611,3.2078,2612.8,2612.6,0.38264]
[1724336140804,3.2078,2612.8,2612.7,3.8272]
[1724336141007,4.0266,2613.4,2612.4,3.2078]
[1724336141209,3.6281,2613.4,2612.8,0.38261]
[1724336141403,3.6281,2613.4,2612.6,0.38264]
[1724336141404,0.38255,2613.3,2612.6,0.38264]
[1724336141603,0.00574053,2613.2,2612.6,0.79594]
[1724336141997,0.38830053,2613.2,2612.6,0.4133]
[1724336142203,0.00574053,2613.2,2612.6,0.4133]
[1724336142706,0.00574053,2613.2,2612.6,0.79594]
[1724336143213,0.00574053,2613.2,2612.7,0.38263]
[1724336143414,0.00574053,2613.2,2612.6,0.4133]
[1724336143598,0.38258,2613.1,2612.6,0.4133]
[1724336143910,0.00574053,2613.2,2612.6,0.4133]
[1724336144108,3.2078,2613.1,2612.6,0.4133]
[1724336144497,3.2078,2613.1,2612.6,3.6211]
[1724336144715,3.59037,2613.1,2612.6,0.4133]
[1724336145010,3.2078,2613.1,2612.6,0.79594]
[1724336145204,7.035,2613.1,2612.4,3.2078]
[1724336145511,3.59046,2612.5,2612.0,0.42916837]
[1724336145706,3.2078,2612.5,2612.0,0.81189837]
[1724336145908,3.2078,2612.8,2612.0,0.42916837]
[1724336146204,1.91302708,2613.0,2612.5,0.38265]
[1724336146205,0.4311,2613.0,2612.5,0.38265]
[1724336146407,4.69546761,2613.2,2612.6,0.4249]
[1724336146408,0.00574053,2613.2,2612.6,0.4249]
[1724336146610,0.00574053,2613.2,2612.8,3.2078]
[1724336146799,0.00574053,2613.2,2612.7,0.8222]
[1724336147001,0.00574053,2613.2,2612.7,1.20482]
[1724336147205,0.00574053,2613.2,2612.4,6.614]
[1724336147206,0.38258,2613.1,2612.4,6.614]
[1724336147410,0.00574053,2613.2,2612.5,0.4068]
[1724336147709,3.59038,2613.0,2612.5,0.8292]
[1724336148110,3.2078,2613.0,2612.5,0.4068]
[1724336148504,3.2078,2613.0,2612.4,3.2078]
[1724336148806,0.38262,2612.8,2612.4,3.2078]
[1724336149009,4.16438,2612.7,2611.9,0.00574053]
[1724336149314,3.59049,2612.3,2611.9,0.00574053]
[1724336150917,0.38268,2612.4,2611.9,0.00574053]
[1724336151207,4.4451,2612.6,2612.0,0.38698837]
[1724336151208,0.38267,2612.5,2612.0,0.38698837]
[1724336151415,4.0243,2612.6,2612.1,10.77858]
[1724336151416,3.2078,2612.6,2612.1,10.77858]
[1724336151606,3.21354053,2613.2,2612.2,0.4262]
[1724336151799,0.38257,2613.1,2612.5,0.38265]
[1724336151998,0.38257,2613.1,2612.2,0.4262]
[1724336151999,3.21354053,2613.2,2612.7,0.38262]
[1724336152199,0.38830053,2613.2,2612.5,0.38266]
[1724336152402,0.38258,2613.1,2612.6,0.8498]
[1724336152612,0.38830053,2613.2,2612.6,1.23244]
[1724336152912,0.38257,2613.1,2612.6,0.8498]
[1724336153100,0.00574053,2613.2,2612.6,0.8498]
[1724336153305,0.00574053,2613.2,2612.6,1.23243]
[1724336153610,0.38830053,2613.2,2612.6,1.23243]
[1724336154412,0.38830053,2613.2,2612.6,0.8498]
[1724336154413,0.38257,2613.1,2612.6,0.8498]
[1724336154617,3.2078,2613.0,2612.6,0.8498]
[1724336154911,3.2078,2613.0,2612.6,1.23243]
[1724336155305,3.2078,2613.0,2612.6,0.8498]
[1724336155306,0.3826,2612.9,2612.6,0.8498]
[1724336155508,0.38262,2612.8,2612.6,0.4192]
[1724336155811,3.2078,2613.0,2612.2,0.845]
[1724336155812,3.2078,2612.7,2612.2,0.845]
[1724336156010,3.2078,2612.4,2612.2,0.4188]
[1724336156212,3.2078,2612.4,2612.1,0.423]
[1724336156716,3.2078,2612.4,2612.0,0.00426837]
[1724336156717,3.59048,2612.4,2612.0,0.00426837]
[1724336157011,3.2078,2612.1,2612.0,0.00426837]
[1724336157218,3.59052,2612.1,2612.0,0.00426837]
[1724336157419,12.82712,2612.1,2612.0,0.00426837]
[1724336157816,13.78392,2612.1,2612.0,0.00426837]
[1724336158510,0.38273,2612.0,2611.9,0.00574053]
[1724336158706,9.21153,2612.0,2611.9,0.00574053]
[1724336158912,4.21153,2612.0,2611.9,0.00574053]
[1724336159109,3.8288,2612.0,2611.9,0.00574053]
[1724336159521,3.83372001,2612.0,2611.9,0.00854397]
[1724336159817,0.00492001,2612.0,2611.9,0.00854397]
[1724336160224,0.00492001,2612.0,2611.9,0.39128397]
[1724336160615,0.00492001,2612.0,2611.9,0.00854397]
[1724336160914,0.00492001,2612.0,2611.9,0.39128397]
[1724336161123,0.00492001,2612.0,2611.9,0.00854397]
[1724336161124,3.83372001,2612.0,2611.9,0.00854397]
[1724336161425,4.21645001,2612.0,2611.9,0.00854397]
[1724336161626,4.65792001,2612.0,2611.9,0.00854397]
[1724336161810,10.04065001,2612.0,2611.9,0.00854397]
[1724336162413,9.65792001,2612.0,2610.8,0.4269]
[1724336162627,9.65792001,2612.0,2610.8,0.3953]
[1724336162628,3.2078,2611.3,2610.8,0.3953]
[1724336163014,0.38287,2611.1,2610.8,0.3953]
[1724336163327,0.8385,2611.2,2610.1,3.2078]
[1724336163328,1.22136,2611.2,2610.1,3.2078]
[1724336164128,0.00574053,2611.1,2610.6,0.01038093]
[1724336164312,0.00574053,2611.1,2611.0,0.38288]
[1724336164728,0.00574053,2611.1,2610.6,0.01038093]
[1724336164729,0.00574053,2611.1,2610.8,0.3829]
[1724336164914,0.00574053,2611.1,2610.9,0.4074]
[1724336165528,3.83534053,2611.1,2610.9,0.4074]
[1724336165731,4.21820053,2611.1,2610.9,0.4074]
[1724336165916,0.00574053,2611.1,2610.9,0.4074]
[1724336166922,0.00574053,2611.1,2610.9,0.79029]
[1724336167120,0.00574053,2611.1,2611.0,0.38288]
[1724336167316,0.00574053,2611.1,2610.9,0.4074]
[1724336167517,0.00574053,2611.1,2610.9,0.79029]
[1724336167724,0.00574053,2611.1,2611.0,0.38288]
[1724336168723,0.00574053,2611.1,2610.9,0.79028]
[1724336168925,0.00574053,2611.1,2610.9,0.4074]
[1724336169120,0.00574053,2611.1,2610.9,0.79028]
[1724336169322,0.00574053,2611.1,2611.0,0.38288]
[1724336169519,0.00574053,2611.1,2611.0,4.21248]
[1724336170214,0.00574053,2611.1,2610.9,0.4074]
[1724336171328,0.00574053,2611.1,2611.0,0.38288]
[1724336171525,0.00574053,2611.1,2610.9,0.4074]
[1724336171720,0.00574053,2611.1,2611.0,0.38288]
[1724336172116,0.00574053,2611.1,2611.0,4.21248]
[1724336173125,3.2078,2611.5,2611.4,0.38282]
[1724336173344,0.38276,2611.8,2611.3,0.38283]
[1724336173525,3.59055,2611.9,2611.4,0.38282]
[1724336173727,3.59055,2611.9,2611.5,0.4354]
[1724336173929,3.2078,2611.9,2611.5,0.4354]
[1724336174130,3.59055,2611.9,2611.5,0.4354]
[1724336174325,0.38278,2611.7,2611.5,0.4354]
[1724336174636,0.38277,2611.8,2611.5,0.4354]
[1724336175133,0.38278,2611.7,2611.5,0.4354]
[1724336175327,3.59055,2611.9,2611.5,0.4354]
[1724336175634,3.59055,2611.9,2611.5,0.8182]
[1724336176031,3.2078,2611.9,2611.5,0.4354]
[1724336176331,0.01066054,2612.0,2611.9,0.38274]
[1724336176525,0.01066054,2612.0,2611.9,4.40469096]
[1724336176923,0.01066054,2612.0,2611.9,4.83529096]
[1724336177434,3.2078,2612.7,2611.9,9.45255096]
[1724336177630,0.3977,2613.3,2612.4,3.2078]
[1724336177935,0.38257,2613.1,2612.5,1.22365]
[1724336178136,0.38258,2613.0,2612.5,0.841]
[1724336178435,0.38261,2612.9,2612.5,0.8457047]
[1724336178737,0.38261,2612.9,2612.5,0.85144523]
[1724336179333,0.38261,2612.8,2612.5,0.85144523]
[1724336179728,0.38264,2612.6,2612.5,0.01044523]
[1724336179928,0.38264,2612.7,2612.5,0.01044523]
[1724336180433,3.2078,2612.8,2612.5,0.01044523]
[1724336180434,3.59041,2612.8,2612.5,0.01044523]
[1724336180935,0.38263,2612.7,2612.5,0.01044523]
[1724336181526,3.2078,2612.8,2612.5,0.39309523]
[1724336181722,3.2078,2612.8,2612.7,0.38263]
[1724336181929,3.2078,2612.8,2612.6,0.798]
[1724336182331,3.2078,2612.8,2612.7,0.38263]
[1724336182529,0.00879534,2613.0,2612.9,0.3826]
[1724336183330,0.00879534,2613.0,2612.9,4.2098]
[1724336183734,0.00879534,2613.0,2612.9,9.2098]
[1724336184126,0.3825,2613.6,2613.1,0.38256]
[1724336184428,0.3981,2613.7,2612.7,0.4056]
[1724336184429,0.38251,2613.5,2613.2,0.4222]
[1724336184837,0.3825,2613.6,2613.2,0.4222]
[1724336185032,0.38251,2613.5,2613.2,0.4222]
[1724336185333,0.00328689,2613.6,2613.2,0.4222]
[1724336185638,0.00328689,2613.6,2613.4,0.38252]
[1724336186137,0.00328689,2613.6,2613.5,0.38251]
[1724336187632,0.00328689,2613.6,2613.4,0.38252]
[1724336187833,0.00328689,2613.6,2613.5,0.38251]
[1724336188038,0.00328689,2613.6,2613.4,3.59032]
[1724336189741,0.00328689,2613.6,2613.4,3.2078]
[1724336189944,0.00328689,2613.6,2613.2,0.4222]
[1724336190443,0.38578689,2613.6,2613.2,0.80475]
[1724336190634,0.38251,2613.5,2613.2,0.4222]
[1724336190832,0.00328689,2613.6,2613.2,0.4222]
[1724336191028,3.21108689,2613.6,2613.2,0.4222]
[1724336191642,0.38252,2613.5,2613.2,0.4222]
[1724336191831,0.00328689,2613.6,2613.2,0.4222]
[1724336192032,0.38251,2613.5,2613.2,0.4222]
[1724336192236,0.38252,2613.4,2613.2,0.4222]
[1724336192428,3.21108689,2613.6,2613.2,0.4222]
[1724336192644,3.2078,2613.3,2612.7,0.38262]
[1724336192831,0.38259,2613.0,2612.6,1.21193]
[1724336193031,3.2078,2613.3,2612.6,1.21193]
[1724336193032,3.2078,2613.3,2612.6,0.8293]
[1724336193232,0.38256,2613.2,2612.8,0.38261]
[1724336193447,3.2078,2613.3,2612.9,0.3826]
[1724336193743,0.38256,2613.2,2612.8,0.3826]
[1724336194128,3.2078,2613.3,2612.6,0.8293]
[1724336194332,3.2078,2613.3,2612.6,1.21193]
[1724336194333,0.38259,2613.0,2612.6,1.21193]
[1724336194538,0.38258,2613.1,2612.7,0.38263]
[1724336194737,0.38258,2613.1,2612.6,1.21193]
[1724336194937,0.38258,2613.1,2612.7,0.38262]
[1724336195742,0.38258,2613.1,2612.5,0.42434523]
[1724336195743,0.38264,2612.7,2612.5,0.01044523]
[1724336195936,0.38262,2612.8,2612.5,0.01044523]
[1724336196546,0.38263,2612.7,2612.5,0.01044523]
[1724336197046,0.38262,2612.8,2612.5,0.01044523]
[1724336197242,0.38262,2612.8,2612.5,0.39309523]
[1724336197447,0.38263,2612.7,2612.5,0.01044523]
[1724336197643,0.38261,2612.9,2612.5,0.39309523]
[1724336197849,3.2078,2613.0,2612.9,0.3826]
[1724336198034,3.2078,2613.0,2612.6,0.8332]
[1724336198035,3.59039,2613.0,2612.6,0.8332]
[1724336198234,3.2078,2613.0,2612.8,0.3826]
[1724336198436,3.2078,2613.0,2612.7,0.38262]
[1724336198639,3.2078,2613.0,2612.8,0.38261]
[1724336199032,3.2078,2613.0,2612.6,0.8332]
[1724336199237,3.2078,2613.0,2612.9,0.3826]
[1724336200951,3.2078,2613.0,2612.7,0.3983]
[1724336201138,0.38256,2613.2,2612.7,0.3983]
[1724336201336,0.38256,2613.2,2612.9,0.3826]
[1724336201541,0.38252,2613.4,2613.0,0.38257]
[1724336201745,0.00328689,2613.6,2612.7,0.3983]
[1724336202033,0.38253,2613.4,2613.0,0.38258]
[1724336202239,0.00328689,2613.6,2612.7,0.3983]
[1724336202438,0.38256,2613.2,2612.8,0.38261]
[1724336203144,0.38254,2613.3,2612.9,0.38259]
[1724336203550,3.59033,2613.4,2613.0,0.38258]
[1724336204152,3.2078,2613.4,2613.0,0.38258]
[1724336204356,0.38254,2613.3,2612.9,0.38259]
[1724336205045,0.38254,2613.3,2612.7,0.3983]
[1724336205247,0.38255,2613.2,2612.8,0.38261]
[1724336205548,0.38255,2613.2,2612.6,0.8332]
[1724336205549,0.4106,2613.3,2612.6,0.8332]
[1724336205755,0.38257,2613.1,2612.7,0.38263]
[1724336206354,0.8178,2613.3,2612.7,0.38263]
[1724336206550,0.38258,2613.1,2612.7,0.38263]
[1724336206743,0.38258,2613.1,2612.6,0.8332]
[1724336206744,3.59038,2613.1,2612.6,0.8332]
[1724336206943,3.2078,2613.1,2612.6,0.8332]
[1724336207143,3.2078,2613.1,2613.0,0.38258]
[1724336207345,3.2078,2613.1,2612.9,0.38259]
[1724336207551,3.2078,2613.1,2612.6,0.8332]
[1724336208059,3.2078,2613.1,2612.8,0.38261]
[1724336208363,3.2078,2613.1,2612.6,0.8332]
[1724336208658,0.3826,2612.9,2612.6,1.21584]
[1724336209154,3.2078,2612.7,2612.5,0.01044523]
[1724336209453,3.2078,2612.7,2612.5,0.39309523]
[1724336209646,3.2078,2612.7,2612.6,0.38264]
[1724336209853,3.59039,2613.0,2612.7,0.38262]
[1724336210154,3.2078,2613.0,2612.7,0.38262]
[1724336210355,3.2078,2613.0,2612.5,0.01044523]
[1724336210852,3.2078,2613.0,2612.9,0.3826]
[1724336211849,3.2078,2613.3,2612.9,8.8272]
[1724336212159,0.38578689,2613.6,2613.2,0.38254]
[1724336212348,0.38251,2613.5,2613.1,0.38256]
[1724336212553,0.38253,2613.4,2613.0,0.38258]
[1724336212853,0.38252,2613.5,2613.1,0.38255]
[1724336213050,0.38252,2613.5,2612.8,6.614]
[1724336213452,0.00328689,2613.6,2612.8,6.614]
[1724336213656,0.38578689,2613.6,2612.8,6.614]
[1724336213855,0.38578689,2613.6,2612.8,7.57052]
[1724336214058,0.00328689,2613.6,2613.0,0.95644]
[1724336214364,0.00328689,2613.6,2613.0,4.16424]
[1724336214555,0.00328689,2613.6,2613.5,0.38251]
[1724336215257,0.00328689,2613.6,2613.5,4.20891]
[1724336216154,0.00328689,2613.6,2613.3,0.18807829]
[1724336216356,0.00328689,2613.6,2613.5,0.38251]
[1724336216751,0.00328689,2613.6,2613.5,4.20891]
[1724336217649,3.2078,2614.3,2613.5,15.4404]
[1724336217848,1.16857,2614.5,2614.0,0.38243]
[1724336218051,1.16857,2614.5,2614.1,0.38242]
[1724336218052,0.7862,2614.5,2614.1,0.38242]
[1724336218261,0.7862,2614.5,2614.1,0.79281]
[1724336218758,0.00466745,2614.5,2614.2,0.3824]
[1724336219063,0.00466745,2614.5,2614.4,0.38238]
[1724336219246,0.00466745,2614.5,2614.4,0.385987]
[1724336219449,0.7885,2614.9,2614.4,0.385987]
[1724336219450,1.48192708,2615.1,2614.6,0.38234]
[1724336219748,0.38228,2615.1,2614.7,0.4104]
[1724336219953,3.2078,2615.0,2614.4,0.003607]
[1724336220159,1.48192708,2615.1,2614.5,0.4104]
[1724336220444,1.48192708,2615.1,2614.4,0.003607]
[1724336220445,4.69356076,2615.1,2614.4,0.003607]
[1724336220651,0.3823,2615.0,2614.4,0.003607]
[1724336220856,1.86804076,2615.1,2614.5,0.38236]
[1724336221049,0.38229,2615.0,2614.4,0.385977]
[1724336221251,4.69356076,2615.1,2614.4,0.003607]
[1724336221446,3.21163368,2615.1,2614.4,0.003607]
[1724336221652,0.3823,2614.9,2614.4,0.003607]
[1724336221852,0.7777,2615.0,2614.4,0.003607]
[1724336222162,0.3954,2615.0,2614.5,0.38236]
[1724336222568,0.3954,2615.0,2614.4,0.003607]
[1724336222757,0.3954,2615.0,2614.5,0.38236]
[1724336223158,0.3954,2615.0,2614.6,0.38234]
[1724336223352,0.3954,2615.0,2614.7,0.19276675]
[1724336223655,0.00383368,2615.1,2614.8,0.3823]
[1724336223851,0.00383368,2615.1,2614.5,9.8218]
[1724336224060,0.00383368,2615.1,2615.0,0.38229]
[1724336224264,0.00383368,2615.1,2615.0,0.56985407]
[1724336224562,0.00383368,2615.1,2615.0,9.34985407]
[1724336224957,0.00383368,2615.1,2615.0,14.34985407]
[1724336225957,0.38215,2616.0,2615.4,0.38223]
[1724336226164,0.38215,2616.0,2615.5,0.38222]
[1724336226360,4.39973,2616.1,2615.6,0.3822]
[1724336226866,4.39973,2616.1,2615.9,0.38215]
[1724336226867,0.0045278,2616.1,2615.9,0.38215]
[1724336227072,0.0045278,2616.1,2615.8,3.58997]
[1724336227363,0.0045278,2616.1,2615.9,0.38215]
[1724336228468,0.0045278,2616.1,2615.8,3.58996]
[1724336228763,0.0045278,2616.1,2615.8,3.2078]
[1724336229167,0.0045278,2616.1,2615.9,0.38216]
[1724336230058,0.0045278,2616.1,2616.0,0.38214]
[1724336230470,0.0045278,2616.1,2615.9,0.38214]
[1724336230666,0.0045278,2616.1,2615.8,3.58996]
[1724336230865,0.0045278,2616.1,2615.9,0.38216]
[1724336231167,0.0045278,2616.1,2615.8,3.2078]
[1724336231468,0.0045278,2616.1,2615.5,0.38221]
[1724336231655,0.0045278,2616.1,2615.4,0.38797053]
[1724336231967,3.2078,2615.8,2615.4,0.00574053]
[1724336232168,0.4251,2615.7,2615.4,0.00574053]
[1724336232470,0.8202,2615.7,2615.4,0.00574053]
[1724336233377,0.8202,2615.7,2615.4,0.38797053]
[1724336233571,0.8202,2615.7,2615.5,0.38222]
[1724336233872,0.8202,2615.7,2615.4,0.00574053]
[1724336234072,0.8202,2615.7,2615.4,0.38796053]
[1724336234569,0.8202,2615.7,2615.4,0.00574053]
[1724336235072,0.38215,2616.0,2615.4,3.59576053]
[1724336235364,0.0045278,2616.1,2615.4,3.59576053]
[1724336235365,0.0045278,2616.1,2615.5,6.606]
[1724336235569,0.0045278,2616.1,2615.7,0.38217]
[1724336235873,0.0045278,2616.1,2615.5,6.606]
[1724336235874,0.0045278,2616.1,2615.9,0.38216]
[1724336236079,0.0045278,2616.1,2615.9,0.38215]
[1724336236362,0.0045278,2616.1,2615.5,6.998]
[1724336236569,0.0045278,2616.1,2615.8,0.38217]
[1724336236757,0.0045278,2616.1,2615.5,6.998]
[1724336236758,0.0045278,2616.1,2615.7,3.2078]
[1724336236957,0.0045278,2616.1,2615.9,0.38215]
[1724336237159,0.0045278,2616.1,2615.9,0.38216]
[1724336237365,0.0045278,2616.1,2615.8,0.38217]
[1724336237673,0.0045278,2616.1,2615.8,3.2078]
[1724336238167,0.0045278,2616.1,2615.5,10.2058]
[1724336238473,0.0045278,2616.1,2615.7,0.38218]
[1724336238860,0.0045278,2616.1,2615.8,0.38217]
[1724336239270,0.0045278,2616.1,2615.5,10.2058]
[1724336239661,0.0045278,2616.1,2615.7,0.38218]
[1724336239970,0.0045278,2616.1,2615.8,0.38217]
[1724336240270,0.0045278,2616.1,2615.7,0.38217]
[1724336240473,0.0045278,2616.1,2615.8,3.2078]
[1724336240967,0.0045278,2616.1,2615.5,6.998]
[1724336241277,0.3866578,2616.1,2615.6,0.3822]
[1724336241582,0.3866578,2616.1,2615.4,3.5383722]
[1724336241583,0.3822,2615.7,2615.4,0.00574053]
[1724336241873,0.38218,2615.8,2615.4,0.00574053]
[1724336242264,0.4369,2615.9,2615.5,0.38222]
[1724336242461,0.4369,2615.9,2615.4,0.00574053]
[1724336242462,0.4369,2615.9,2615.8,0.38217]
[1724336242666,0.4369,2615.9,2615.6,0.38219]
[1724336242866,0.4369,2615.9,2615.5,0.38221]
[1724336243163,0.4369,2615.9,2615.6,0.38219]
[1724336243372,0.4369,2615.9,2615.4,3.21354053]
[1724336243373,0.81906,2615.9,2615.4,3.21354053]
[1724336243559,0.4369,2615.9,2615.4,0.00574053]
[1724336243764,0.81906,2615.9,2615.4,3.21354053]
[1724336243966,0.38217,2615.8,2615.4,3.21354053]
[1724336244168,0.81906,2615.9,2615.4,0.38797053]
[1724336244366,0.81906,2615.9,2615.6,3.2078]
[1724336244563,0.4369,2615.9,2615.6,3.2078]
[1724336244969,0.3866678,2616.1,2615.6,3.2078]
[1724336245169,0.3866678,2616.1,2615.4,0.00574053]
[1724336245170,0.0045278,2616.1,2615.4,0.00574053]
[1724336245378,0.38222,2615.5,2615.4,0.00574053]
[1724336245583,3.2078,2615.7,2615.4,0.00574053]
[1724336245771,0.4343,2615.6,2615.4,0.00574053]
[1724336245972,0.81651,2615.6,2615.4,0.00574053]
[1724336246271,0.38222,2615.5,2615.4,0.00574053]
[1724336246472,0.4343,2615.6,2615.4,0.00574053]
[1724336247486,0.8165,2615.6,2615.4,0.00574053]
[1724336247678,0.4343,2615.6,2615.4,0.00574053]
[1724336248175,0.38222,2615.5,2615.4,0.00574053]
[1724336248574,4.20542,2615.5,2615.4,0.00574053]
[1724336249471,0.38222,2615.5,2615.4,0.00574053]
[1724336249671,0.4343,2615.6,2615.4,0.00574053]
[1724336249877,0.4163,2615.7,2615.6,0.3822]
[1724336250180,3.2078,2615.8,2615.4,0.38796053]
[1724336250373,4.02988,2615.8,2615.4,0.38796053]
[1724336250574,4.02988,2615.8,2615.5,0.38221]
[1724336250774,0.0045278,2616.1,2615.6,4.956]
[1724336250983,0.38215,2616.0,2615.6,5.3382]
[1724336251279,0.38215,2616.0,2615.7,0.38218]
[1724336251672,0.3866678,2616.1,2615.8,0.38217]
[1724336251875,0.3866578,2616.1,2615.8,0.38217]
[1724336252382,0.0045278,2616.1,2615.8,3.2078]
[1724336252581,0.3866578,2616.1,2615.8,0.38216]
[1724336253385,0.0045278,2616.1,2616.0,0.38214]
[1724336253768,3.2078,2616.3,2616.2,0.38211]
[1724336253978,3.2078,2616.6,2616.2,4.956]
[1724336254173,0.8171,2617.0,2616.5,5.33806]
[1724336254481,0.8171,2617.0,2616.5,0.38206]
[1724336254879,0.43896545,2617.0,2616.5,0.38656021]
[1724336255181,0.43896545,2617.0,2616.7,3.2078]
[1724336255579,0.43896545,2617.0,2616.7,3.58984]
[1724336257078,0.43896545,2617.0,2616.8,0.38202]
[1724336257382,0.00386545,2617.0,2616.8,0.38203]
[1724336257790,0.00386545,2617.0,2616.9,0.38201]
[1724336258489,0.00386545,2617.0,2616.9,7.41141]
[1724336258686,0.00386545,2617.0,2616.9,14.01541]
[1724336259077,0.00386545,2617.0,2616.9,4.20361]
[1724336259287,0.00386545,2617.0,2616.9,3.8216]
[1724336259484,0.00386545,2617.0,2616.6,10.2247]
[1724336259485,0.00386545,2617.0,2616.6,3.6207]
[1724336259683,0.38586545,2617.0,2616.6,0.4129]
[1724336259887,0.00386545,2617.0,2616.6,0.4129]
[1724336260184,0.00386545,2617.0,2616.7,0.38203]
[1724336260381,0.00386545,2617.0,2616.6,10.2247]
[1724336260382,0.00386545,2617.0,2616.9,3.2078]
[1724336260687,0.38586545,2617.0,2616.6,0.4129]
[1724336260887,0.38586545,2617.0,2616.5,0.43980021]
[1724336260888,0.00386545,2617.0,2616.5,0.43980021]
[1724336261187,0.38203,2616.9,2616.5,0.43980021]
[1724336261388,0.4493,2616.9,2616.5,0.82187021]
[1724336261887,0.4493,2616.9,2616.5,0.43980021]
[1724336262086,0.38206,2616.6,2616.5,0.00450021]
[1724336262397,0.442,2616.8,2616.5,0.00450021]
[1724336262398,0.38205,2616.7,2616.5,0.00450021]
[1724336262583,0.38206,2616.6,2616.5,0.00450021]
[1724336262783,4.20366,2616.6,2616.5,0.00450021]
[1724336262985,9.20366,2616.6,2616.5,0.00450021]
[1724336263186,4.20366,2616.6,2616.5,0.00450021]
[1724336263886,3.8216,2616.6,2616.5,0.00450021]
[1724336264285,0.38206,2616.6,2616.5,0.00450021]
[1724336264483,3.8216,2616.6,2616.5,0.00450021]
[1724336264682,1.23843,2616.8,2616.5,3.21230021]
[1724336264889,4.678,2616.8,2616.5,3.21230021]
[1724336265088,0.38206,2616.6,2616.5,0.00450021]
[1724336265590,4.20366,2616.6,2616.5,0.00450021]
[1724336265884,5.15881,2616.6,2616.5,0.00450021]
[1724336266084,13.36661,2616.6,2616.5,0.00450021]
[1724336266291,0.38214,2616.1,2615.8,3.58997]
[1724336266590,0.95522,2616.4,2615.9,0.38215]
[1724336266885,0.4434,2616.3,2616.1,0.38213]
[1724336267092,2.33353282,2616.8,2616.2,3.2078]
[1724336267292,2.33353282,2616.8,2616.4,0.38208]
[1724336267293,1.2683,2616.8,2616.4,0.38208]